Cogmind - Beta 13 X1 @@@ ROGUE MODE // 2023.07.11 @ 11:52:31 Player: Minty Result: Self-destructed Performance ------------- Evolutions (3) 1500 Regions Visited (6) 1200 Robots Destroyed (110) 550 Value Destroyed (3300) 3300 Prototype IDs (24) 480 Alien Tech Used (0) 0 Bonus (2613) 2613 TOTAL SCORE: 9643 Bonus ------- Triggered High Security 500 High Alert Combat Kills 1348 Follower Combat Kills 876 Aligned with FarCom 300 Friendly Fire -411 Cogmind --------- Core Integrity 98/700 Matter 410/450 Energy 100/100 System Corruption 4% Temperature Cool (0) Movement Walking (680) Ox8 Location -7/Factory Parts ------- > --- POWER (1) -------- (None) > --- PROPULSION (2) --- Aluminum Leg > --- UTILITY (8) ------ Large Matter Pod System Shield Army-in-a-Box (0/30) > --- WEAPON (2) ------- (None) > --- INVENTORY (5) ---- (None) Peak State ------------ > --- POWER ------------ Light Deuterium Engine > --- PROPULSION ------- Wheel Wheel > --- UTILITY ---------- Improved Heat Sink Improved Heat Sink Army-in-a-Box > --- WEAPON ----------- Firepult > --- INVENTORY -------- Hardened Heavy Armor Plating Rocket Array [Rating: 86] Favorites ----------- Power Ion Engine Engine Ion Engine Power Core Light Nuclear Core Propulsion Wheel Leg Aluminum Leg Wheel Wheel Utility Improved Heat Sink Device Improved Heat Sink Storage Small Storage Unit Processor Improved Targeting Computer Hackware System Shield Protection Improved Light Armor Plating Weapon Firepult Energy Gun Small Laser Energy Cannon Firepult Ballistic Gun Light Assault Rifle Launcher Rocket Array Build | -11 -10 -10 -10 -9 -8 -7 ------- Run | Jun Mat Min Exi Min Mat Fac Slots Evolved 6 | . . . . . 4 2 Power . | . . . . . . . Propulsion . | . . . . . . . Utility 6 | . . . . . 4 2 Weapon . | . . . . . . . Parts Attached 45 | . 3 . . 3 7 32 Power 3 | . . . . . 1 2 Engine 2 | . . . . . 1 1 Core 1 | . . . . . . 1 Reactor . | . . . . . . . Propulsion 9 | . 2 . . 2 1 4 Treads . | . . . . . . . Leg 2 | . . . . 1 . 1 Wheel 7 | . 2 . . 1 1 3 Hover . | . . . . . . . Flight . | . . . . . . . Utility 20 | . 1 . . . 3 16 Device 10 | . . . . . 2 8 Storage 3 | . . . . . . 3 Processor 2 | . 1 . . . . 1 Hackware 1 | . . . . . . 1 Protection 4 | . . . . . 1 3 Artifact . | . . . . . . . Weapon 13 | . . . . 1 2 10 Energy Gun . | . . . . . . . Energy Cannon 2 | . . . . 1 1 . Ballistic Gun 6 | . . . . . . 6 Ballistic Cannon . | . . . . . . . Launcher 5 | . . . . . 1 4 Special Weapon . | . . . . . . . Impact Weapon . | . . . . . . . Slashing Weapon . | . . . . . . . Piercing Weapon . | . . . . . . . Special Melee Weapon . | . . . . . . . Unidentified Prototypes 1 | . . . . . 1 . Parts Lost 17 | . . . . . 1 16 Power 3 | . . . . . . 3 Propulsion 4 | . . . . . 1 3 Utility 8 | . . . . . . 8 Weapon 2 | . . . . . . 2 Highest Loss Streak 10 | . . . . . 1 10 To Critical Strikes . | . . . . . . . Average Slot Usage (%) 76 | . 97 100 100 85 59 65 Engine 8 | . 14 14 14 14 9 3 Core 1 | . . . . . . 2 Wheel 16 | . 28 28 28 24 17 8 Device 9 | . . . . . 6 18 Storage 10 | . 14 14 14 14 9 7 Processor 7 | . 11 14 14 14 9 2 Hackware 2 | . . . . . . 5 Protection 3 | . . . . . . 5 Energy Gun 3 | . 14 14 14 . . . Energy Cannon 4 | . . . . 14 8 2 Ballistic Gun 6 | . 14 14 14 . . 5 Naked Turns . | . . . . . . . Heaviest Build 109 | 12 12 12 12 32 54 109 Greatest Support 28 | 20 20 20 20 20 20 28 Greatest Overweight (x) 27 | . . . . 3 3 27 Average Overweight (x) 1 | . . . . 1 1 2 Largest Inventory Capacity 8 | . 8 8 8 8 8 8 Average Capacity 7 | . 8 8 8 8 8 6 Most Carried 8 | . 8 8 8 8 8 8 Average Carried 6 | . 7 8 7 6 7 5 Final Capacity 8 | 8 8 8 8 8 8 5 Final Carried 8 | 6 8 8 8 7 8 . Class Distribution -------------------- 86% | Mutant 13% | Scavenger-Mutant Dominant Class ---------------- Mutant | -10/Materials Mutant | -10/Mines Mutant | -10/Exiles Mutant | -9/Mines Mutant | -8/Materials Mutant | -7/Factory Resources | -11 -10 -10 -10 -9 -8 -7 ----------- Run | Jun Mat Min Exi Min Mat Fac Matter Collected 1169 | 200 41 . . 35 65 828 Remotely . | . . . . . . . Salvage Created 4013 | . 99 . . 295 534 3085 Parts 171 | . 9 . . 21 25 116 Haulers Intercepted 2 | . . . . . . 2 Recyclers Shooed 1 | . . . . . . 1 Parts Field Recycled . | . . . . . . . Retrieved Matter . | . . . . . . . Parts Self-Destructed . | . . . . . . . Prevented . | . . . . . . . Kills | -11 -10 -10 -10 -9 -8 -7 ------- Run | Jun Mat Min Exi Min Mat Fac Combat Hostiles Destroyed 67 | . 4 . . 8 6 49 Guns 15 | . 4 . . . . 11 Cannons 4 | . . . . 1 1 2 AOE 43 | . . . . 7 4 32 Classes Destroyed 18 | . 3 . . 3 5 7 Worker 11 | . . . . 2 . 9 Builder 14 | . . . . . 4 10 Tunneler 4 | . . . . 3 . 1 Hauler 2 | . . . . . . 2 Recycler 9 | . . . . . 1 8 Mechanic 4 | . . . . . . 4 Operator 1 | . 1 . . . . . Drone 1 | . . . . . . 1 Watcher 3 | . . . . . 1 2 Swarmer 12 | . 3 . . 5 . 4 Grunt 35 | . 1 . . 2 3 29 Brawler 5 | . . . . . . 5 Duelist 4 | . . . . 1 . 3 Sentry 3 | . . . . . . 3 Specialist 2 | . . . . . 2 . Hunter 1 | . . . . . . 1 Programmer 4 | . . . . . . 4 Heavy 1 | . . . . . 1 . Thug 1 | . . . . . . 1 Best Kill Streak 21 | . 3 . . 3 12 21 Combat Bots Only 13 | . 3 . . 3 5 13 Max Kills in Single Turn 7 | . 1 . . 2 2 7 Gunslinging . | . . . . . . . Exploded 6 | . . . . 2 2 6 Melee . | . . . . . . . Uniques/NPCs Destroyed . | . . . . . . . Combat | -11 -10 -10 -10 -9 -8 -7 -------- Run | Jun Mat Min Exi Min Mat Fac Damage Taken 3083 | . 76 . . 141 95 2771 Core 726 | . 18 . . 42 64 602 Absorbed by Shields 26 | . . . . . . 26 Core Remaining (%) 88 | 100 . . . 76 88 . Volleys Fired 103 | . 16 . . 10 7 70 Largest 2 | . 2 . . 1 1 2 Hottest 250 | . 60 . . 250 250 250 Shots Fired 171 | . 31 . . 10 7 123 Gun 129 | . 31 . . . . 98 Cannon 33 | . . . . 10 7 16 Launcher 9 | . . . . . . 9 Special . | . . . . . . . Kinetic 114 | . 16 . . . . 98 Thermal 48 | . 15 . . 10 7 16 Explosive 9 | . . . . . . 9 Electromagnetic . | . . . . . . . Robot Hit Streak 11 | . 11 . . 7 5 11 Robot Miss Streak 9 | . 2 . . 7 9 7 Penetration Max . | . . . . . . . Secondary Targets 5 | . 2 . . . . 3 Max Gunslinging Chain 1 | . 1 . . . . 1 Shots Hit Robots 118 | . 21 . . 8 5 84 Core Hits 260 | . 10 . . 14 30 206 Critical Kills . | . . . . . . . Critical Parts Destroyed . | . . . . . . . Critical Strikes . | . . . . . . . Melee Attacks . | . . . . . . . Impact . | . . . . . . . Slashing . | . . . . . . . Piercing . | . . . . . . . Sneak Attacks . | . . . . . . . Combat Hostiles . | . . . . . . . Follow-up Attacks . | . . . . . . . Damage Inflicted 9291 | . 205 . . 513 867 7706 Guns 1393 | . 196 . . . . 1197 Cannons 716 | . . . . 99 149 468 Explosions 7091 | . . . . 414 718 5959 Melee . | . . . . . . . Ramming 91 | . 9 . . . . 82 Kinetic 1265 | . 68 . . . . 1197 Thermal 4012 | . 128 . . 513 867 2504 Explosive 3923 | . . . . . . 3923 Electromagnetic . | . . . . . . . Impact . | . . . . . . . Slashing . | . . . . . . . Piercing . | . . . . . . . Highest Corruption 4 | . . . . . . 4 Average Corruption 2 | . . . . . . 2 Corruption Purged . | . . . . . . . Corruption Blocked . | . . . . . . . Effects 14 | . . . . . . 14 Message Errors 4 | . . . . . . 4 Matter Fused 1 | . . . . . . 1 Heat Flow Errors 1 | . . . . . . 1 Energy Discharges 2 | . . . . . . 2 Parts Rejected 1 | . . . . . . 1 Data Loss (minor) 2 | . . . . . . 2 Data Loss (major) 2 | . . . . . . 2 Misfires 1 | . . . . . . 1 Overload Shots . | . . . . . . . Overflow Damage 342 | . . . . 8 25 309 Projectiles . | . . . . . . . Explosions 342 | . . . . 8 25 309 Melee . | . . . . . . . Knockbacks . | . . . . . . . Impact . | . . . . . . . Kinetic . | . . . . . . . Secondary . | . . . . . . . Self-Inflicted Damage 915 | . 4 . . 24 9 878 Shots 42 | . . . . 3 1 38 Rammed 13 | . 1 . . . . 12 Targets Rammed 13 | . 1 . . . . 12 Kicked . | . . . . . . . Crushed . | . . . . . . . Highest Temperature 460 | . 60 . . 460 376 400 Average Temperature 148 | . 25 . . 166 174 163 Received Heat Transfer 618 | . 12 . . 12 27 567 Effects 11 | . . . . 3 . 8 Energy Bleed 3 | . . . . 1 . 2 Interference 7 | . . . . 1 . 6 Damage (minor) 1 | . . . . 1 . . Siege Activations . | . . . . . . . Robots Corrupted . | . . . . . . . Combat Hostiles . | . . . . . . . Parts Fried . | . . . . . . . Impact Corruptions . | . . . . . . . Robots Melted 5 | . . . . . 1 4 Combat Hostiles 5 | . . . . . 1 4 Parts Melted 53 | . . . . 5 14 34 Heat Transferred 17570 | . 300 . . 2370 4880 10020 Parts Sabotaged . | . . . . . . . Parts Stolen . | . . . . . . . Parts Stripped . | . . . . . . . Power Chain Reactions 1 | . . . . . . 1 Missiles Intercepted . | . . . . . . . Alert | -11 -10 -10 -10 -9 -8 -7 ------- Run | Jun Mat Min Exi Min Mat Fac Peak Influence 2450 | . 120 46 . 348 423 2450 Initial 191 | . . 46 . . 57 191 Average 710 | . 52 46 . 215 208 1068 Maximum Alert Level 5 | . . . . 1 2 5 Low Security (%) 27 | . 100 100 . 23 59 9 Level 1 20 | . . . . 76 16 6 Level 2 7 | . . . . . 23 9 Level 3 13 | . . . . . . 22 Level 4 21 | . . . . . . 35 Level 5 . | . . . . . . . High Security 9 | . . . . . . 16 Max Security . | . . . . . . . Squads Dispatched 34 | . 3 . . . 3 28 Investigation 5 | . 1 . . . . 4 Extermination 3 | . . . . . . 3 Reinforcement 10 | . 2 . . . 3 5 Assault 8 | . . . . . . 8 Garrison 8 | . . . . . . 8 Intercept . | . . . . . . . Searches Triggered . | . . . . . . . Construction Impeded 5 | . . . . . 1 4 Haulers Reinforced 1 | . . . . . . 1 Active Scanning Responses . | . . . . . . . Cargo Convoy Interrupts . | . . . . . . . Stealth | -11 -10 -10 -10 -9 -8 -7 --------- Run | Jun Mat Min Exi Min Mat Fac Distress Signals 4 | . . . . . 3 1 Communications Jammed . | . . . . . . . Distress Signals . | . . . . . . . Times Spotted 112 | . 7 . . 10 11 84 Peak Tracking Total 13 | . 4 . . 3 7 13 Tactical Retreats 3 | . . . . 1 1 1 Traps | -11 -10 -10 -10 -9 -8 -7 ------- Run | Jun Mat Min Exi Min Mat Fac Traps Triggered 1 | . . . . . . 1 Indirectly . | . . . . . . . Trap Hack Attempts . | . . . . . . . Triggered . | . . . . . . . Disarmed . | . . . . . . . Reprogrammed . | . . . . . . . Reused . | . . . . . . . Traps Extracted . | . . . . . . . Installed . | . . . . . . . Triggered . | . . . . . . . Machines | -11 -10 -10 -10 -9 -8 -7 ---------- Run | Jun Mat Min Exi Min Mat Fac Machines Disabled 24 | . . . . 2 2 20 Max in Single Turn 7 | . . . . 1 2 7 Garrison Access 2 | . . . . . 1 1 Machines Repaired . | . . . . . . . Machines Sabotaged . | . . . . . . . Overloaded Fab Kills . | . . . . . . . Hacking | -11 -10 -10 -10 -9 -8 -7 --------- Run | Jun Mat Min Exi Min Mat Fac Machines Accessed 12 | . 1 . 5 . 2 4 Terminals 1 | . 1 . . . . . Fabricators 2 | . . . . . . 2 Repair Stations . | . . . . . . . Recycling Units 1 | . . . . . . 1 Scanalyzers 1 | . . . . . 1 . Garrison Access 2 | . . . . . 1 1 Total Hacks 47 | . 1 . 33 . 4 9 Successful 41 | . 1 . 33 . 3 4 Failed 6 | . . . . . 1 5 Catastrophic 3 | . . . . . . 3 Database Lockouts . | . . . . . . . Manual 1 | . . . 1 . . . Terminals 1 | . 1 . . . . . Fabricators 6 | . . . . . . 6 Repair Stations . | . . . . . . . Recycling Units 1 | . . . . . . 1 Scanalyzers 2 | . . . . . 2 . Garrison Access 4 | . . . . . 2 2 Terminal Hacks 34 | . 1 . 33 . . . Record 32 | . . . 32 . . . Hauler Manifests 1 | . 1 . . . . . Derelict Proto ID Bank 1 | . . . 1 . . . Fabricator Hacks 3 | . . . . . . 3 Load Schematic 2 | . . . . . . 2 Build 1 | . . . . . . 1 Repair Station Hacks . | . . . . . . . Recycling Unit Hacks 1 | . . . . . . 1 Retrieve Matter 1 | . . . . . . 1 Scanalyzer 2 | . . . . . 2 . Insert Component 1 | . . . . . 1 . Analyze 1 | . . . . . 1 . Garrison Access Hacks 1 | . . . . . 1 . Seal Access 1 | . . . . . 1 . Unauthorized Hacks . | . . . . . . . Terminals . | . . . . . . . Fabricators . | . . . . . . . Repair Stations . | . . . . . . . Recycling Units . | . . . . . . . Scanalyzers . | . . . . . . . Garrison Access . | . . . . . . . Data Cores Recovered . | . . . . . . . Used . | . . . . . . . Hacking Detections 5 | . . . . . 1 4 Full Trace Events 3 | . . . . . . 3 Feedback Events . | . . . . . . . Feedback Blocked . | . . . . . . . Robot Schematics Acquired . | . . . . . . . Robots Built . | . . . . . . . Authchips . | . . . . . . . Time . | . . . . . . . Total Robot Build Rating . | . . . . . . . Part Schematics Acquired 1 | . . . . . 1 . Parts Built 1 | . . . . . . 1 Authchips . | . . . . . . . Time 67 | . . . . . . 67 Total Part Build Rating 4 | . . . . . . 4 Parts Repaired . | . . . . . . . Time . | . . . . . . . Parts Recycled . | . . . . . . . Recycled Matter . | . . . . . . . Retrieved Matter 334 | . . . . . . 334 Retrieved Components . | . . . . . . . Parts Scanalyzed 1 | . . . . . 1 . Part Schematics Acquired 1 | . . . . . 1 . Parts Damaged . | . . . . . . . Bothacking | -11 -10 -10 -10 -9 -8 -7 ------------ Run | Jun Mat Min Exi Min Mat Fac Used RIF Installer . | . . . . . . . Robots Hacked . | . . . . . . . Non-combat . | . . . . . . . Combat . | . . . . . . . Robot Hacks Applied . | . . . . . . . Relay Couplers Released 2 | . . . . . . 2 Machine Destruction 2 | . . . . . . 2 Fabnet Peak Effective % . | . . . . . . . Robots Rewired . | . . . . . . . Allies Hacked . | . . . . . . . Hacks Repelled . | . . . . . . . Allies | -11 -10 -10 -10 -9 -8 -7 -------- Run | Jun Mat Min Exi Min Mat Fac Total Allies 6 | . . 2 . 4 . . Largest Group 4 | . . 2 2 4 4 2 Highest-Rated Group 71 | . . 42 42 71 71 47 Highest-Rated Ally 31 | . . 31 31 31 31 31 Total Orders 3 | . . . . . . 3 FOLLOW 1 | . . . . . . 1 EXPLORE 1 | . . . . . . 1 RETURN 1 | . . . . . . 1 Ally Attacks 209 | . . . . 2 26 181 Total Damage 4009 | . . . . 14 251 3744 Kills 38 | . . . . 1 5 32 Allies Corrupted . | . . . . . . . Allies Melted . | . . . . . . . Intel | -11 -10 -10 -10 -9 -8 -7 ------- Run | Jun Mat Min Exi Min Mat Fac Robot Analysis Total . | . . . . . . . Derelict Logs Recovered 1 | . . . . 1 . . Drone Launches 51 | . . . . . . 51 Drone Recoveries 21 | . . . . . . 21 Exploration | -11 -10 -10 -10 -9 -8 -7 ------------- Run | Jun Mat Min Exi Min Mat Fac Turns Passed 2329 | . 162 83 324 401 148 1211 Spaces Moved 1604 | 1 132 59 396 324 124 568 Core 8 | . . . . . . 8 Treads . | . . . . . . . Legs 17 | 1 3 . . . . 13 Wheels 1579 | . 129 59 396 324 124 547 Hover . | . . . . . . . Flight . | . . . . . . . Fastest Speed 50 | 120 80 80 80 80 80 50 Average Speed 108 | 120 80 80 80 100 97 143 Slowest Speed 1400 | 120 120 80 80 125 125 1400 Overloaded Moves . | . . . . . . . Propulsion Burnouts . | . . . . . . . Robots Hopped . | . . . . . . . Cave-ins Triggered . | . . . . . . . Exploration Rate (%) 30 | 2 29 12 63 77 13 17 Regions Visited 6 Branch Regions 3 Pre-discovered Areas 3 | . . . 1 2 . . Known Exits Taken . | . . . . . . . Unknown Exits Taken 6 | 1 1 1 1 1 1 . Scrap Searched 3 | . . . . 3 . . Spaces Dug . | . . . . . . . Terrain Destroyed 294 | . . . . 86 31 177 Melee . | . . . . . . . Projectile 9 | . . . . 5 4 . AOE 285 | . . . . 81 27 177 Terrain Rammed . | . . . . . . . Walls Destroyed . | . . . . . . . Machines Disabled . | . . . . . . . Actions | -11 -10 -10 -10 -9 -8 -7 --------- Run | Jun Mat Min Exi Min Mat Fac Total 2024 | . 159 94 406 388 142 835 Wait 211 | . . 36 1 49 2 123 Move 1598 | . 131 58 395 323 123 568 Hop . | . . . . . . . Pick Up 16 | . 5 . 2 . . 9 Fast Attach 25 | . 1 . . 1 6 17 Attach 6 | . . . . 1 . 5 Detach 3 | . . . . 1 1 1 Swap 14 | . 2 . . 1 1 10 Drop 29 | . 3 . 8 2 2 14 Fire 103 | . 16 . . 10 7 70 Melee . | . . . . . . . Ram 13 | . 1 . . . . 12 Kick . | . . . . . . . Crush . | . . . . . . . Escape Stasis 6 | . . . . . . 6 Rewire . | . . . . . . . Trap . | . . . . . . . Miscellaneous . | . . . . . . . Route ------- -11/Junkyard -10/Materials (discovered 2 exits: [*Mat] / [*Min]) -10/Mines -10/Exiles -9/Mines -8/Materials -7/Factory History --------- Turn | Location | Event 1 | -11/Junkyard | Discovered new exit (range 0) 1 | -11/Junkyard | Entered Materials 76 | -10/Materials | Discovered new exit (range 5) 127 | -10/Materials | Met 8R-AWN 155 | -10/Materials | Discovered new exit (range 11) 163 | -10/Materials | Entered Mines 164 | -10/Mines | Followed 8R-AWN into the Mines 193 | -10/Mines | Met a Derelict bent on vengeance 211 | -10/Mines | Discovered new exit (range 5) 246 | -10/Mines | Entered Exiles 246 | -10/Exiles | Accompanied by 2 allies 266 | -10/Exiles | Welcomed by 8R-AWN 276 | -10/Exiles | Led the pair of lost Derelicts to a safe place 279 | -10/Exiles | Met EX-HEX 311 | -10/Exiles | Build established: Mutant 317 | -10/Exiles | Met EX-DEC 321 | -10/Exiles | Learned location of Zion (-7) 335 | -10/Exiles | Met EX-BIN 346 | -10/Exiles | Aligned with FarCom system 347 | -10/Exiles | Given EX-Vault access code 381 | -10/Exiles | Opened EX-Vault 433 | -10/Exiles | Warned to stay clear of 0b10 Research branches 487 | -10/Exiles | Found Firepult 493 | -10/Exiles | Found Army-in-a-Box 563 | -10/Exiles | Discovered new exit (range 10) 570 | -10/Exiles | Stole two prototypes: Army-in-a-Box, Firepult 570 | -10/Exiles | Entered Mines 875 | -9/Mines | Discovered new exit (range 8) 894 | -9/Mines | Assisted by bots powering up and referring to "LRC-V3" 913 | -9/Mines | Escorted by a lone wolf Derelict 933 | -9/Mines | Learned location of Storage (-8) 971 | -9/Mines | Entered Materials 971 | -8/Materials | Accompanied by 4 allies 971 | -8/Materials | Evolved 4 slots: Utility x4 997 | -8/Materials | Found Prototype Launcher 997 | -8/Materials | Identified Rocket Array 1110 | -8/Materials | Discovered new exit (range 8) 1119 | -8/Materials | Entered Factory 1119 | -7/Factory | Accompanied by 2 allies 1119 | -7/Factory | Evolved 2 slots: Utility x2 1121 | -7/Factory | FarCom data flow suspended 1268 | -7/Factory | Garrison activated, responded to threat 1449 | -7/Factory | Destroyed 8 combat bots 1519 | -7/Factory | First assault squad dispatched 1685 | -7/Factory | Build established: Scavenger-Mutant 1697 | -7/Factory | Garrison activated, responded to threat 1740 | -7/Factory | Destroyed 9 combat bots 1982 | -7/Factory | Fabricated Rocket Array (x1) 1986 | -7/Factory | Build established: Mutant 2104 | -7/Factory | Garrison activated, responded to threat 2136 | -7/Factory | Core integrity fell below 50% 2136 | -7/Factory | High security lockdown imminent 2137 | -7/Factory | Core integrity fell below 20% 2157 | -7/Factory | Destroyed 13 combat bots 2167 | -7/Factory | Lost 10 parts (1p1n6u2w) 2216 | -7/Factory | High security lockdown engaged 2330 | -7/Factory | Self-destructed Last Messages --------------- 02312_ Army Drone destroyed. 02312_ Army Drone knocked back. 02312_ H-55 Commando destroyed. 02312_ Army Drone destroyed. 02313_ P-60 Hacker destroyed. 02313_ H-55 Commando destroyed. 02314_ Army Drone destroyed. 02316_ D-53 Grenadier destroyed. 02318_ Nuclear Reactor explodes. 02318_ Army Drone destroyed. 02320_ The unstable cave ceiling collapses. 02320_ Destroyed Mni. Grenade Launcher. 02321_ The unstable cave ceiling collapses. 02322_ C-30 ARC bursts open, deploying its payload. 02322_ G-50 Soldier unfolds itself. 02322_ L-41 Fighter unfolds itself. 02322_ B-48 Gladiator unfolds itself. 02322_ G-47 Trooper unfolds itself. 02322_ M-28 Smith unfolds itself. 02326_ Army Drone destroyed. Map ----- +----------------------------------------------------+ | ?????????????????????????????????????????????????? | | ?????????????????????????????????????????????????? | | ?????????????????????????????????????????????????? | | ?????????????????????????????????????????????????? | | ?????????????????????????????????????????????????? | | ?????????????????????????????????????????????????? | | ?????????????????????????????????????????????????? | | ?????????????????????????????????????????????????? | | ?????????????????????????????????????????????????? | | ?????????????????????????????????????????????????? | | ?????????????????????????????????????????????????? | | ?????????????????????????????????????????????????? | | ?????????????????????????????????????????????????? | | ?????????????????????????????????????????????????? | | ?????????????????????????????????????????????????? | | ???????????????# """"????????????????????????????? | | ???????????????# """"????????????????????????????? | | ?????????????### """"????????????????????????????? | | ???????????### ????##############??????????? | | ??????????## # ##### !#??????????? | | ??????????# + #??????????? | | ??????????# [ # #??????????? | | #?????????# # """ """" #??????????? | | #####????# # """ """"?????????????? | | #????# # """ """"?????????????? | | "" #????# @ """"?????????????? | | "F #????# """"?????????????? | | """ #????# """"?????????????? | | """ #????# ! """"?????????????? | | ####### #??????????? | | + ! #??????????? | | # ^ ^ % ###########??????????? | | # ???????????? | | ]! + bl """ ""???????????????? | | ! # ! # """ ""???????????????? | | ! # ]%= # """ ""???????????????? | | ###### % g # ???????????????? | | % [ !%[ d # """ ""???????????????? | | !%[ %%[ %!g # """ ""???????????????? | | = [ % # """ ""???????????????? | | =* %%= # ???????????????? | | % "[ ######??????????????????? | | ##### # ## %## #??????????????????????? | | ?# [ ##?????????????????????? | | ?# % = #?????????????????????? | | ?# %#! ##?????????????????????? | | ?+ %[* %#??????????????????????? | | ## = ! #??????????????????????? | | ?# !% #??????????????????????? | | ?# ] #??????????????????????? | +----------------------------------------------------+ Best States ------------- Heat Dissipation 89 Energy Generation 14 Energy Capacity 250 Matter Stores 450 Matter Capacity 450 Sight Range 16 Terrain Scan Density 10 Armor Coverage 750 Evasion (%) 44 Targeting Accuracy 6 Core Analysis 6 Defensive Hacking 10 Item Schematics ----------------- Rocket Array | -8/Materials | Scanalyzed Robot Schematics ------------------ None Fabricated ------------ Rocket Array | x1 | -7/Factory Alien Tech Used ----------------- None Achievements -------------- None Challenges ------------ None Game ------ Seed AuthchipAntimatterNanosword Manual? 0 Play Time 00:27:32 Cumulative 431.0 hours Start 2023.07.11 @ 11:25:28 End 2023.07.11 @ 11:52:31 Sessions 1 Manual Loads 0 Difficulty Rogue Special Mode None Game No. 313 Rogue 94 Adventurer 76 Explorer 143 Win Type - Total 22 Types 19/0/2/0/0/0/0/1/0 Lore% 65 Gallery% 86 Achievement% 71 Wizard Run 0 Options --------- ASCII 0 Keyboard 1 Movement Numpad Keybinds 0 Fullscreen 2 Font 18/X11Bold Map View 76x50 Tactical HUD 1 Map Filters NONE Filters NONE Steam 1 RUN: a7f0e0aa-df17-430f-9cb9-c6ec7ade6940